[Event "2026 Biel Blitz Open"]
[Site "Biel, CH"]
[Date "2026.07.19"]
[Round "10"]
[White "Matsumura, Cocoro"]
[Black "Amonatov, Farrukh"]
[Result "0-1"]
[Board "10"]
[TimeControl "180+2"]
[WhiteFideId "36087114"]
[BlackFideId "14700077"]
[WhiteElo "2131"]
[BlackElo "2585"]
[WhiteTitle "CM"]
[BlackTitle "GM"]
[WhiteClock "0:00:07"]
[BlackClock "0:00:18"]
[Variant "Standard"]
[EndDate "2026.07.19"]
[EndTime "15:00:19"]

1. e4 {[%clk 0:03:04]}  c5 {[%clk 0:03:03]} 2. Nf3 {[%clk 0:03:05]}  d6 {[%clk 0:03:04]} 3. d4 {[%clk 0:03:06]}  cxd4 {[%clk 0:03:05]}
4. Nxd4 {[%clk 0:03:07]}  Nf6 {[%clk 0:03:06]} 5. Nc3 {[%clk 0:03:08]}  a6 {[%clk 0:03:08]} 6. Bg5 {[%clk 0:03:08]}  e6 {[%clk 0:03:09]}
7. Qf3 {[%clk 0:03:09]}  Be7 {[%clk 0:03:10]} 8. O-O-O {[%clk 0:03:09]}  Qc7 {[%clk 0:03:11]} 9. g4 {[%clk 0:03:09]}  Nbd7 {[%clk 0:03:09]}
10. Bd2 {[%clk 0:03:09]}  Ne5 {[%clk 0:03:04]} 11. Qe2 {[%clk 0:03:10]}  b5 {[%clk 0:02:55]} 12. g5 {[%clk 0:03:11]}  Nfd7 {[%clk 0:02:56]}
13. f4 {[%clk 0:03:12]}  Nc4 {[%clk 0:02:58]} 14. Ndxb5 {[%clk 0:03:13]}  axb5 {[%clk 0:02:55]} 15. Nxb5 {[%clk 0:03:14]}  Qb8 {[%clk 0:02:46]}
16. Qxc4 {[%clk 0:03:14]}  O-O {[%clk 0:02:46]} 17. Nc3 {[%clk 0:02:46]}  Nc5 {[%clk 0:02:36]} 18. Qe2 {[%clk 0:02:30]}  Bb7 {[%clk 0:02:12]}
19. a3 {[%clk 0:02:30]}  Rc8 {[%clk 0:02:11]} 20. Qe3 {[%clk 0:02:06]}  Na4 {[%clk 0:01:30]} 21. Nxa4 {[%clk 0:01:56]}  Rxa4 {[%clk 0:01:30]}
22. Bd3 {[%clk 0:01:56]}  d5 {[%clk 0:01:31]} 23. exd5 {[%clk 0:00:59]}  Bxd5 {[%clk 0:01:19]} 24. Rdf1 {[%clk 0:00:53]}  Qa8 {[%clk 0:00:36]}
25. Rhg1 {[%clk 0:00:48]}  Bc5 {[%clk 0:00:33]} 26. Qh3 {[%clk 0:00:40]}  Be4 {[%clk 0:00:29]} 27. Rg3 {[%clk 0:00:27]}  Bxa3 {[%clk 0:00:29]}
28. bxa3 {[%clk 0:00:24]}  Rxa3 {[%clk 0:00:30]} 29. Kd1 {[%clk 0:00:24]}  Rd8 {[%clk 0:00:19]} 30. Ke2 {[%clk 0:00:21]}  Ra2 {[%clk 0:00:20]}
31. Re3 {[%clk 0:00:19]}  Bxd3+ {[%clk 0:00:21]} 32. Rxd3 {[%clk 0:00:20]}  Qe4+ {[%clk 0:00:17]} 33. Qe3 {[%clk 0:00:21]}  Qg2+ {[%clk 0:00:19]}
34. Rf2 {[%clk 0:00:22]}  Qg4+ {[%clk 0:00:20]} 35. Qf3 {[%clk 0:00:23]}  Qxf3+ {[%clk 0:00:19]} 36. Rfxf3 {[%clk 0:00:24]}  Rc8 {[%clk 0:00:20]}
37. c3 {[%clk 0:00:24]}  g6 {[%clk 0:00:20]} 38. h4 {[%clk 0:00:25]}  Rb8 {[%clk 0:00:21]} 39. h5 {[%clk 0:00:26]}  gxh5 {[%clk 0:00:21]}
40. Rh3 {[%clk 0:00:26]}  Rb5 {[%clk 0:00:20]} 41. Rxh5 {[%clk 0:00:26]}  Rf5 {[%clk 0:00:21]} 42. Ke3 {[%clk 0:00:27]}  Ra4 {[%clk 0:00:22]}
43. Rd4 {[%clk 0:00:28]}  Ra1 {[%clk 0:00:23]} 44. Rh2 {[%clk 0:00:29]}  Rf1 {[%clk 0:00:24]} 45. Rf2 {[%clk 0:00:29]}  Rg1 {[%clk 0:00:26]}
46. c4 {[%clk 0:00:28]}  Kg7 {[%clk 0:00:27]} 47. Bc3 {[%clk 0:00:27]}  Kg6 {[%clk 0:00:28]} 48. Rdd2 {[%clk 0:00:23]}  Rc5 {[%clk 0:00:28]}
49. Rh2 {[%clk 0:00:27]}  Rxc4 {[%clk 0:00:28]} 50. Rh6+ {[%clk 0:00:28]}  Kf5 {[%clk 0:00:29]} 51. Rf6+ {[%clk 0:00:25]}  Kg4 {[%clk 0:00:30]}
52. Be5 {[%clk 0:00:25]}  Rg3+ {[%clk 0:00:31]} 53. Kf2 {[%clk 0:00:25]}  Rc1 {[%clk 0:00:28]} 54. Rxf7 {[%clk 0:00:23]}  Rh1 {[%clk 0:00:25]}
55. Ke2 {[%clk 0:00:22]}  Rb3 {[%clk 0:00:22]} 56. Rc7 {[%clk 0:00:16]}  Rhh3 {[%clk 0:00:18]} 57. Kd1 {[%clk 0:00:07]}  Kf5 {[%clk 0:00:16]}
58. Rf7+ {[%clk 0:00:06]}  Ke4 {[%clk 0:00:17]} 59. Rc7 {[%clk 0:00:06]}  Ra3 {[%clk 0:00:17]} 60. Rc4+ {[%clk 0:00:06]}  Kf5 {[%clk 0:00:18]}
61. Kc2 {[%clk 0:00:07]}  Rh1 {[%clk 0:00:17]} 62. Kb2 {[%clk 0:00:07]}  Rha1 {[%clk 0:00:16]} 63. Rc5 {[%clk 0:00:07]}  R3a2+ {[%clk 0:00:13]}
64. Kc3 {[%clk 0:00:08]}  Rc1+ {[%clk 0:00:14]} 65. Kd3 {[%clk 0:00:05]}  Rxd2+ {[%clk 0:00:16]} 66. Kxd2 {[%clk 0:00:06]}  Rxc5 {[%clk 0:00:17]}
67. Ke3 {[%clk 0:00:07]}  Rxe5+ {[%clk 0:00:18]} 68. Kd4 {[%clk 0:00:07]} 0-1

[Event "2026 Biel Blitz Open"]
[Site "Biel, CH"]
[Date "2026.07.19"]
[Round "10"]
[White "Gloeckler, Christian"]
[Black "Xu, Chang(CQ)"]
[Result "1-0"]
[Board "11"]
[TimeControl "180+2"]
[WhiteFideId "34608966"]
[BlackFideId "8641757"]
[WhiteElo "2513"]
[BlackElo "2049"]
[WhiteTitle "IM"]
[WhiteClock "0:01:35"]
[BlackClock "0:00:36"]
[Variant "Standard"]
[EndDate "2026.07.19"]
[EndTime "14:56:47"]

1. e4 {[%clk 0:03:03]}  c5 {[%clk 0:03:03]} 2. Nf3 {[%clk 0:03:04]}  d6 {[%clk 0:03:04]} 3. d4 {[%clk 0:03:05]}  cxd4 {[%clk 0:03:05]}
4. Nxd4 {[%clk 0:03:06]}  Nf6 {[%clk 0:03:06]} 5. Nc3 {[%clk 0:03:07]}  a6 {[%clk 0:03:07]} 6. Be3 {[%clk 0:03:07]}  e5 {[%clk 0:03:08]}
7. Nf3 {[%clk 0:03:07]}  Qc7 {[%clk 0:03:09]} 8. a4 {[%clk 0:03:06]}  Be7 {[%clk 0:03:05]} 9. Be2 {[%clk 0:03:06]}  O-O {[%clk 0:03:05]}
10. O-O {[%clk 0:03:07]}  h6 {[%clk 0:03:04]} 11. a5 {[%clk 0:03:00]}  Be6 {[%clk 0:03:03]} 12. Nd5 {[%clk 0:03:01]}  Nxd5 {[%clk 0:02:54]}
13. exd5 {[%clk 0:03:02]}  Bc8 {[%clk 0:02:49]} 14. Bb6 {[%clk 0:02:58]}  Qd7 {[%clk 0:02:47]} 15. c4 {[%clk 0:02:59]}  f5 {[%clk 0:02:44]}
16. b4 {[%clk 0:02:58]}  Bf6 {[%clk 0:02:34]} 17. Rc1 {[%clk 0:02:52]}  Qe7 {[%clk 0:02:28]} 18. c5 {[%clk 0:02:48]}  Nd7 {[%clk 0:02:17]}
19. Bc7 {[%clk 0:02:49]}  dxc5 {[%clk 0:01:58]} 20. bxc5 {[%clk 0:02:50]}  Re8 {[%clk 0:01:56]} 21. c6 {[%clk 0:02:45]}  bxc6 {[%clk 0:01:53]}
22. dxc6 {[%clk 0:02:45]}  Nf8 {[%clk 0:01:50]} 23. Bd6 {[%clk 0:02:45]}  Qf7 {[%clk 0:01:50]} 24. c7 {[%clk 0:02:41]}  Ng6 {[%clk 0:01:36]}
25. Re1 {[%clk 0:02:29]}  Nf4 {[%clk 0:01:27]} 26. Bc4 {[%clk 0:02:25]}  Be6 {[%clk 0:01:12]} 27. Bxe6 {[%clk 0:02:25]}  Qxe6 {[%clk 0:01:13]}
28. Bxe5 {[%clk 0:02:23]}  Bxe5 {[%clk 0:01:11]} 29. Rxe5 {[%clk 0:01:54]}  Qc8 {[%clk 0:00:57]} 30. g3 {[%clk 0:02:04]}  Ne6 {[%clk 0:00:50]}
31. Qd5 {[%clk 0:01:49]}  Kh8 {[%clk 0:00:48]} 32. Rxe6 {[%clk 0:01:40]}  Rxe6 {[%clk 0:00:34]} 33. Qxa8 {[%clk 0:01:39]}  Qxa8 {[%clk 0:00:35]}
34. c8=Q+ {[%clk 0:01:38]}  Qxc8 {[%clk 0:00:35]} 35. Rxc8+ {[%clk 0:01:38]}  Kh7 {[%clk 0:00:36]} 36. Rc5 {[%clk 0:01:37]}  g6 {[%clk 0:00:36]}
37. Ne5 {[%clk 0:01:35]}  Kg7 {[%clk 0:00:36]} 38. Rc7+ {[%clk 0:01:34]}  Kf8 {[%clk 0:00:35]} 39. f4 {[%clk 0:01:33]}  g5 {[%clk 0:00:35]}
40. Rc6 {[%clk 0:01:34]}  Rxc6 {[%clk 0:00:36]} 41. Nxc6 {[%clk 0:01:35]}  g4 {[%clk 0:00:36]} 42. Nb4 {[%clk 0:01:35]} 1-0

[Event "2026 Biel Blitz Open"]
[Site "Biel, CH"]
[Date "2026.07.19"]
[Round "10"]
[White "Tureshbayev, Anuar"]
[Black "Bajraktari, Perparim"]
[Result "1-0"]
[Board "12"]
[TimeControl "180+2"]
[WhiteFideId "651081709"]
[BlackFideId "1307711"]
[WhiteElo "2328"]
[BlackElo "2045"]
[WhiteTitle "FM"]
[WhiteClock "0:00:37"]
[BlackClock "0:01:09"]
[Variant "Standard"]
[EndDate "2026.07.19"]
[EndTime "15:05:44"]

1. e4 {[%clk 0:03:00]}  c5 {[%clk 0:03:02]} 2. Nf3 {[%clk 0:02:58]}  Nc6 {[%clk 0:03:03]} 3. d4 {[%clk 0:02:59]}  cxd4 {[%clk 0:03:05]}
4. Nxd4 {[%clk 0:03:00]}  d6 {[%clk 0:03:06]} 5. c4 {[%clk 0:02:59]}  g6 {[%clk 0:03:06]} 6. Nc3 {[%clk 0:02:55]}  Bg7 {[%clk 0:03:08]}
7. Be3 {[%clk 0:02:56]}  Nf6 {[%clk 0:03:09]} 8. Be2 {[%clk 0:02:53]}  O-O {[%clk 0:03:04]} 9. O-O {[%clk 0:02:53]}  a6 {[%clk 0:03:02]}
10. Rc1 {[%clk 0:02:50]}  Bd7 {[%clk 0:03:03]} 11. Qd2 {[%clk 0:02:38]}  Rc8 {[%clk 0:03:02]} 12. f3 {[%clk 0:02:20]}  Ne5 {[%clk 0:03:01]}
13. b3 {[%clk 0:02:12]}  Re8 {[%clk 0:03:00]} 14. Nd5 {[%clk 0:01:52]}  Nxd5 {[%clk 0:02:57]} 15. exd5 {[%clk 0:01:50]}  Rf8 {[%clk 0:02:34]}
16. h3 {[%clk 0:01:40]}  f5 {[%clk 0:02:28]} 17. f4 {[%clk 0:01:41]}  Nf7 {[%clk 0:02:29]} 18. Ne6 {[%clk 0:01:37]}  Bxe6 {[%clk 0:02:20]}
19. dxe6 {[%clk 0:01:38]}  Nh6 {[%clk 0:02:21]} 20. Bf3 {[%clk 0:01:39]}  Rb8 {[%clk 0:02:17]} 21. c5 {[%clk 0:01:38]}  dxc5 {[%clk 0:01:54]}
22. Qxd8 {[%clk 0:01:35]}  Rfxd8 {[%clk 0:01:56]} 23. Bxc5 {[%clk 0:01:36]}  Bf6 {[%clk 0:01:55]} 24. Rfd1 {[%clk 0:01:36]}  b5 {[%clk 0:01:41]}
25. Rxd8+ {[%clk 0:01:26]}  Rxd8 {[%clk 0:01:42]} 26. Bb7 {[%clk 0:01:27]}  Rd2 {[%clk 0:01:35]} 27. Bxa6 {[%clk 0:01:25]}  Rd5 {[%clk 0:01:23]}
28. b4 {[%clk 0:01:19]}  g5 {[%clk 0:01:20]} 29. Bxb5 {[%clk 0:01:12]}  gxf4 {[%clk 0:01:17]} 30. Bc4 {[%clk 0:01:12]}  Rd2 {[%clk 0:01:18]}
31. a4 {[%clk 0:01:12]}  f3 {[%clk 0:01:13]} 32. gxf3 {[%clk 0:01:11]}  f4 {[%clk 0:01:14]} 33. a5 {[%clk 0:01:04]}  Nf5 {[%clk 0:01:15]}
34. Bf2 {[%clk 0:01:04]}  Bd4 {[%clk 0:01:11]} 35. Bxd4 {[%clk 0:00:55]}  Nxd4 {[%clk 0:01:12]} 36. Rf1 {[%clk 0:00:53]}  Rb2 {[%clk 0:01:08]}
37. b5 {[%clk 0:00:38]}  Nxb5 {[%clk 0:01:09]} 38. Bxb5 {[%clk 0:00:39]}  Rxb5 {[%clk 0:01:11]} 39. Ra1 {[%clk 0:00:41]}  Rb7 {[%clk 0:01:08]}
40. a6 {[%clk 0:00:41]}  Ra7 {[%clk 0:01:10]} 41. Ra4 {[%clk 0:00:36]}  Kg7 {[%clk 0:01:09]} 42. Kf2 {[%clk 0:00:37]} 1-0

[Event "2026 Biel Blitz Open"]
[Site "Biel, CH"]
[Date "2026.07.19"]
[Round "10"]
[White "Fernandes Barbosa Dos Santos, Gabriel"]
[Black "Dong, Hongfu"]
[Result "0-1"]
[Board "13"]
[TimeControl "180+2"]
[WhiteFideId "1354388"]
[BlackFideId "8626960"]
[WhiteElo "2167"]
[BlackElo "2290"]
[WhiteTitle "CM"]
[WhiteClock "0:00:04"]
[BlackClock "0:00:56"]
[Variant "Standard"]
[EndDate "2026.07.19"]
[EndTime "14:59:14"]

1. e4 {[%clk 0:03:02]}  c5 {[%clk 0:03:04]} 2. Nf3 {[%clk 0:03:03]}  d6 {[%clk 0:03:05]} 3. d4 {[%clk 0:03:04]}  cxd4 {[%clk 0:03:06]}
4. Nxd4 {[%clk 0:03:04]}  Nf6 {[%clk 0:03:07]} 5. Nc3 {[%clk 0:03:04]}  g6 {[%clk 0:03:08]} 6. Be3 {[%clk 0:03:01]}  Bg7 {[%clk 0:03:10]}
7. f3 {[%clk 0:03:02]}  O-O {[%clk 0:03:09]} 8. Qd2 {[%clk 0:03:02]}  Nc6 {[%clk 0:03:10]} 9. Bc4 {[%clk 0:03:02]}  Bd7 {[%clk 0:03:12]}
10. h4 {[%clk 0:02:59]}  h5 {[%clk 0:03:13]} 11. O-O-O {[%clk 0:02:56]}  Ne5 {[%clk 0:03:14]} 12. Bb3 {[%clk 0:02:55]}  Rc8 {[%clk 0:03:15]}
13. g4 {[%clk 0:02:51]}  hxg4 {[%clk 0:03:16]} 14. h5 {[%clk 0:02:51]}  Nxh5 {[%clk 0:03:17]} 15. Bh6 {[%clk 0:02:44]}  e6 {[%clk 0:01:49]}
16. Bxg7 {[%clk 0:02:44]}  Kxg7 {[%clk 0:01:50]} 17. fxg4 {[%clk 0:02:21]}  Nxg4 {[%clk 0:01:51]} 18. Rdg1 {[%clk 0:02:19]}  Nhf6 {[%clk 0:01:32]}
19. Qg5 {[%clk 0:01:23]}  Rc5 {[%clk 0:01:24]} 20. Qd2 {[%clk 0:00:31]}  Rh8 {[%clk 0:01:25]} 21. Nf3 {[%clk 0:00:28]}  Rxh1 {[%clk 0:01:05]}
22. Rxh1 {[%clk 0:00:28]}  Rh5 {[%clk 0:01:06]} 23. Rxh5 {[%clk 0:00:21]}  Nxh5 {[%clk 0:01:08]} 24. Qxd6 {[%clk 0:00:21]}  Qf6 {[%clk 0:01:09]}
25. Qxd7 {[%clk 0:00:18]}  Qxf3 {[%clk 0:01:10]} 26. Qd4+ {[%clk 0:00:17]}  Nhf6 {[%clk 0:01:11]} 27. e5 {[%clk 0:00:15]}  Nh5 {[%clk 0:01:05]}
28. Ne4 {[%clk 0:00:13]}  Nf4 {[%clk 0:01:01]} 29. Kd2 {[%clk 0:00:11]}  Qg2+ {[%clk 0:00:58]} 30. Kd1 {[%clk 0:00:03]}  Qe2+ {[%clk 0:00:54]}
31. Kc1 {[%clk 0:00:04]}  Qe1+ {[%clk 0:00:55]} 32. Qd1 {[%clk 0:00:04]}  Ne2+ {[%clk 0:00:56]} 0-1

[Event "2026 Biel Blitz Open"]
[Site "Biel, CH"]
[Date "2026.07.19"]
[Round "10"]
[White "Haugner, Jan"]
[Black "Omar, Noaman"]
[Result "0-1"]
[Board "14"]
[TimeControl "180+2"]
[WhiteFideId "24655244"]
[BlackFideId "9300244"]
[WhiteElo "1976"]
[BlackElo "2274"]
[BlackTitle "IM"]
[WhiteClock "0:00:04"]
[BlackClock "0:00:42"]
[Variant "Standard"]
[EndDate "2026.07.19"]
[EndTime "14:58:36"]

1. e4 {[%clk 0:03:02]}  c6 {[%clk 0:03:04]} 2. Nf3 {[%clk 0:03:02]}  d5 {[%clk 0:03:05]} 3. d3 {[%clk 0:03:04]}  dxe4 {[%clk 0:02:58]}
4. dxe4 {[%clk 0:03:05]}  Qxd1+ {[%clk 0:02:59]} 5. Kxd1 {[%clk 0:03:05]}  g6 {[%clk 0:02:55]} 6. a4 {[%clk 0:03:04]}  Bg4 {[%clk 0:02:46]}
7. Be2 {[%clk 0:03:00]}  Bxf3 {[%clk 0:02:39]} 8. Bxf3 {[%clk 0:03:01]}  Bh6 {[%clk 0:02:39]} 9. Nd2 {[%clk 0:02:42]}  Nd7 {[%clk 0:02:40]}
10. c3 {[%clk 0:02:38]}  O-O-O {[%clk 0:02:33]} 11. Kc2 {[%clk 0:02:38]}  Ngf6 {[%clk 0:02:28]} 12. a5 {[%clk 0:02:09]}  Ne5 {[%clk 0:02:28]}
13. a6 {[%clk 0:01:45]}  b6 {[%clk 0:02:05]} 14. b3 {[%clk 0:01:27]}  Nxf3 {[%clk 0:02:03]} 15. gxf3 {[%clk 0:01:27]}  Nh5 {[%clk 0:01:58]}
16. Rd1 {[%clk 0:01:21]}  Bf4 {[%clk 0:01:57]} 17. h3 {[%clk 0:00:59]}  Rd7 {[%clk 0:01:47]} 18. Ba3 {[%clk 0:00:46]}  Rhd8 {[%clk 0:01:18]}
19. Nc4 {[%clk 0:00:46]}  c5 {[%clk 0:01:10]} 20. Rxd7 {[%clk 0:00:44]}  Rxd7 {[%clk 0:01:11]} 21. Rd1 {[%clk 0:00:45]}  Rxd1 {[%clk 0:01:03]}
22. Kxd1 {[%clk 0:00:46]}  Kc7 {[%clk 0:01:03]} 23. Ne3 {[%clk 0:00:38]}  e6 {[%clk 0:01:02]} 24. Ng4 {[%clk 0:00:35]}  Kc6 {[%clk 0:01:00]}
25. c4 {[%clk 0:00:34]}  f5 {[%clk 0:00:58]} 26. Ne3 {[%clk 0:00:30]}  Be5 {[%clk 0:00:57]} 27. exf5 {[%clk 0:00:28]}  gxf5 {[%clk 0:00:57]}
28. Bc1 {[%clk 0:00:25]}  Bd4 {[%clk 0:00:54]} 29. Ke1 {[%clk 0:00:22]}  b5 {[%clk 0:00:48]} 30. Nc2 {[%clk 0:00:16]}  Be5 {[%clk 0:00:47]}
31. Be3 {[%clk 0:00:15]}  b4 {[%clk 0:00:46]} 32. Ke2 {[%clk 0:00:09]}  Nf4+ {[%clk 0:00:45]} 33. Bxf4 {[%clk 0:00:11]}  Bxf4 {[%clk 0:00:46]}
34. Ne1 {[%clk 0:00:11]}  Kb6 {[%clk 0:00:46]} 35. Nd3 {[%clk 0:00:13]}  Bd6 {[%clk 0:00:46]} 36. Ke3 {[%clk 0:00:13]}  Kxa6 {[%clk 0:00:44]}
37. f4 {[%clk 0:00:12]}  Kb6 {[%clk 0:00:45]} 38. Nb2 {[%clk 0:00:13]}  Kc6 {[%clk 0:00:39]} 39. Nd3 {[%clk 0:00:11]}  Kd7 {[%clk 0:00:45]}
40. Kf3 {[%clk 0:00:09]}  Ke7 {[%clk 0:00:46]} 41. Kg3 {[%clk 0:00:10]}  Kf6 {[%clk 0:00:47]} 42. Kf3 {[%clk 0:00:08]}  Kg6 {[%clk 0:00:43]}
43. Kg3 {[%clk 0:00:10]}  Kh5 {[%clk 0:00:43]} 44. Nb2 {[%clk 0:00:04]}  e5 {[%clk 0:00:43]} 45. Nd3 {[%clk 0:00:03]}  exf4+ {[%clk 0:00:42]}
46. Kf3 {[%clk 0:00:04]}  Kh4 {[%clk 0:00:42]} 0-1

[Event "2026 Biel Blitz Open"]
[Site "Biel, CH"]
[Date "2026.07.19"]
[Round "10"]
[White "Cao, Qingfeng"]
[Black "Kwiatkowski, Maciej"]
[Result "1-0"]
[Board "15"]
[TimeControl "180+2"]
[WhiteFideId "8627568"]
[BlackFideId "1360175"]
[WhiteElo "2264"]
[BlackElo "1967"]
[WhiteTitle "IM"]
[WhiteClock "0:01:50"]
[BlackClock "0:00:18"]
[Variant "Standard"]
[EndDate "2026.07.19"]
[EndTime "14:57:15"]

1. c4 {[%clk 0:03:02]}  Nf6 {[%clk 0:03:02]} 2. Nc3 {[%clk 0:03:03]}  c5 {[%clk 0:03:02]} 3. Nf3 {[%clk 0:03:02]}  Nc6 {[%clk 0:03:02]}
4. g3 {[%clk 0:03:02]}  g6 {[%clk 0:02:58]} 5. d4 {[%clk 0:02:57]}  cxd4 {[%clk 0:02:56]} 6. Nxd4 {[%clk 0:02:58]}  Bg7 {[%clk 0:02:57]}
7. Bg2 {[%clk 0:02:58]}  O-O {[%clk 0:02:56]} 8. O-O {[%clk 0:02:59]}  a6 {[%clk 0:02:53]} 9. Nc2 {[%clk 0:02:46]}  d6 {[%clk 0:02:38]}
10. b3 {[%clk 0:02:43]}  Bg4 {[%clk 0:02:30]} 11. Bb2 {[%clk 0:02:41]}  Qd7 {[%clk 0:02:27]} 12. Qd2 {[%clk 0:02:36]}  Bh3 {[%clk 0:02:21]}
13. Rad1 {[%clk 0:02:30]}  Bxg2 {[%clk 0:02:21]} 14. Kxg2 {[%clk 0:02:31]}  Ne5 {[%clk 0:02:13]} 15. Ne3 {[%clk 0:02:27]}  Qc6+ {[%clk 0:02:09]}
16. f3 {[%clk 0:02:25]}  b5 {[%clk 0:01:53]} 17. Ncd5 {[%clk 0:02:23]}  Nxd5 {[%clk 0:01:47]} 18. cxd5 {[%clk 0:02:16]}  Qb6 {[%clk 0:01:32]}
19. Bd4 {[%clk 0:02:15]}  Qd8 {[%clk 0:01:29]} 20. Qb2 {[%clk 0:02:14]}  f6 {[%clk 0:01:23]} 21. Rc1 {[%clk 0:02:08]}  Rc8 {[%clk 0:01:21]}
22. f4 {[%clk 0:02:04]}  Nd7 {[%clk 0:01:20]} 23. Rc6 {[%clk 0:02:03]}  Nc5 {[%clk 0:01:03]} 24. Rc1 {[%clk 0:01:57]}  Rxc6 {[%clk 0:01:00]}
25. dxc6 {[%clk 0:01:58]}  Qc7 {[%clk 0:00:47]} 26. b4 {[%clk 0:01:55]}  Ne6 {[%clk 0:00:40]} 27. Nd5 {[%clk 0:01:55]}  Qd8 {[%clk 0:00:17]}
28. c7 {[%clk 0:01:54]}  Qd7 {[%clk 0:00:18]} 29. c8=Q {[%clk 0:01:50]} 1-0

[Event "2026 Biel Blitz Open"]
[Site "Biel, CH"]
[Date "2026.07.19"]
[Round "10"]
[White "Gautier, Anand"]
[Black "Clausen, Martin"]
[Result "1-0"]
[Board "16"]
[TimeControl "180+2"]
[WhiteFideId "26010186"]
[BlackFideId "1314882"]
[WhiteElo "2198"]
[BlackElo "1956"]
[WhiteTitle "FM"]
[WhiteClock "0:01:43"]
[BlackClock "0:00:13"]
[Variant "Standard"]
[EndDate "2026.07.19"]
[EndTime "15:00:37"]

1. e4 {[%clk 0:03:04]}  d5 {[%clk 0:03:03]} 2. exd5 {[%clk 0:03:05]}  c6 {[%clk 0:03:04]} 3. dxc6 {[%clk 0:03:05]}  Nxc6 {[%clk 0:03:05]}
4. Nf3 {[%clk 0:03:02]}  e5 {[%clk 0:03:06]} 5. Nc3 {[%clk 0:03:01]}  Bd6 {[%clk 0:03:04]} 6. Bb5 {[%clk 0:03:02]}  f5 {[%clk 0:03:03]}
7. d4 {[%clk 0:03:01]}  e4 {[%clk 0:03:04]} 8. Ne5 {[%clk 0:03:01]}  Bxe5 {[%clk 0:02:32]} 9. Bxc6+ {[%clk 0:02:58]}  bxc6 {[%clk 0:02:31]}
10. dxe5 {[%clk 0:02:59]}  Ba6 {[%clk 0:01:50]} 11. Qd6 {[%clk 0:02:32]}  Qxd6 {[%clk 0:01:12]} 12. exd6 {[%clk 0:02:33]}  Kd7 {[%clk 0:01:14]}
13. Bf4 {[%clk 0:02:34]}  Nf6 {[%clk 0:01:15]} 14. O-O-O {[%clk 0:02:30]}  Rhe8 {[%clk 0:01:00]} 15. Na4 {[%clk 0:02:28]}  Kd8 {[%clk 0:00:40]}
16. Bg5 {[%clk 0:02:27]}  Rb8 {[%clk 0:00:31]} 17. Nc5 {[%clk 0:02:28]}  Bc8 {[%clk 0:00:32]} 18. Bxf6+ {[%clk 0:02:26]}  gxf6 {[%clk 0:00:33]}
19. c3 {[%clk 0:02:21]}  Bd7 {[%clk 0:00:32]} 20. g3 {[%clk 0:02:17]}  a5 {[%clk 0:00:26]} 21. a3 {[%clk 0:02:01]}  Re5 {[%clk 0:00:20]}
22. b4 {[%clk 0:02:01]}  axb4 {[%clk 0:00:20]} 23. cxb4 {[%clk 0:01:54]}  Ra8 {[%clk 0:00:11]} 24. Kb2 {[%clk 0:01:54]}  Ra7 {[%clk 0:00:03]}
25. Ra1 {[%clk 0:01:48]}  e3 {[%clk 0:00:12]} 26. fxe3 {[%clk 0:01:46]}  Rxe3 {[%clk 0:00:13]} 27. Rhe1 {[%clk 0:01:43]}  Re5 {[%clk 0:00:13]} 1-0

[Event "2026 Biel Blitz Open"]
[Site "Biel, CH"]
[Date "2026.07.19"]
[Round "10"]
[White "Coban, Ege"]
[Black "Schweizer, Simon"]
[Result "1-0"]
[Board "17"]
[TimeControl "180+2"]
[WhiteFideId "26320304"]
[BlackFideId "1325361"]
[WhiteElo "1936"]
[BlackElo "2182"]
[WhiteClock "0:01:46"]
[BlackClock "0:01:26"]
[Variant "Standard"]
[EndDate "2026.07.19"]
[EndTime "14:55:58"]

1. e4 {[%clk 0:03:03]}  e5 {[%clk 0:03:04]} 2. Nf3 {[%clk 0:03:04]}  Nc6 {[%clk 0:03:05]} 3. Bb5 {[%clk 0:03:05]}  a6 {[%clk 0:03:06]}
4. Ba4 {[%clk 0:03:07]}  Nf6 {[%clk 0:03:08]} 5. d4 {[%clk 0:03:08]}  exd4 {[%clk 0:03:08]} 6. O-O {[%clk 0:03:09]}  d6 {[%clk 0:03:07]}
7. Nxd4 {[%clk 0:03:03]}  Bd7 {[%clk 0:03:08]} 8. Re1 {[%clk 0:03:00]}  Nxd4 {[%clk 0:03:05]} 9. Bxd7+ {[%clk 0:03:00]}  Qxd7 {[%clk 0:03:06]}
10. Qxd4 {[%clk 0:03:02]}  Be7 {[%clk 0:03:05]} 11. Nc3 {[%clk 0:03:02]}  O-O {[%clk 0:03:06]} 12. Bg5 {[%clk 0:03:00]}  Rfe8 {[%clk 0:03:07]}
13. Rad1 {[%clk 0:03:01]}  Rad8 {[%clk 0:03:05]} 14. Qd3 {[%clk 0:02:57]}  h6 {[%clk 0:03:06]} 15. Bh4 {[%clk 0:02:59]}  c6 {[%clk 0:03:01]}
16. Bg3 {[%clk 0:02:47]}  Qe6 {[%clk 0:02:59]} 17. Qf3 {[%clk 0:02:44]}  Ng4 {[%clk 0:02:57]} 18. Ne2 {[%clk 0:02:26]}  Ne5 {[%clk 0:02:54]}
19. Qb3 {[%clk 0:02:24]}  b5 {[%clk 0:02:55]} 20. Qxe6 {[%clk 0:02:22]}  fxe6 {[%clk 0:02:55]} 21. Nd4 {[%clk 0:02:19]}  c5 {[%clk 0:02:40]}
22. Nxe6 {[%clk 0:02:17]}  Rc8 {[%clk 0:02:39]} 23. b3 {[%clk 0:02:08]}  g5 {[%clk 0:02:29]} 24. f4 {[%clk 0:02:04]}  Nf7 {[%clk 0:02:23]}
25. f5 {[%clk 0:02:02]}  Rc6 {[%clk 0:02:23]} 26. Rd5 {[%clk 0:02:03]}  h5 {[%clk 0:02:18]} 27. h3 {[%clk 0:02:03]}  Kh7 {[%clk 0:02:18]}
28. Red1 {[%clk 0:02:01]}  Kh6 {[%clk 0:02:14]} 29. Bf2 {[%clk 0:02:01]}  Bf6 {[%clk 0:02:11]} 30. Be3 {[%clk 0:02:01]}  Kh7 {[%clk 0:02:10]}
31. g4 {[%clk 0:01:55]}  h4 {[%clk 0:02:01]} 32. Kg2 {[%clk 0:01:57]}  Kh6 {[%clk 0:01:58]} 33. Bg1 {[%clk 0:01:58]}  b4 {[%clk 0:01:42]}
34. Bh2 {[%clk 0:01:58]}  Be7 {[%clk 0:01:39]} 35. e5 {[%clk 0:01:57]}  dxe5 {[%clk 0:01:39]} 36. Bxe5 {[%clk 0:01:54]}  a5 {[%clk 0:01:31]}
37. Bg7+ {[%clk 0:01:49]}  Kh7 {[%clk 0:01:32]} 38. Bb2 {[%clk 0:01:49]}  a4 {[%clk 0:01:31]} 39. Rd7 {[%clk 0:01:50]}  Kg8 {[%clk 0:01:26]}
40. Ng7 {[%clk 0:01:46]} 1-0